bitfinex/quotes_ETHUSD_20250511
["timestamp","ask_amount","ask_price","bid_price","bid_amount"]
[1746930478768,3.9103775,2557.3,2556.4,0.3068]
[1746930478964,3.91029893,2557.4,2556.4,0.3068]
[1746930479279,0.21893348,2557.2,2556.6,0.3068]
[1746930479444,0.21893348,2557.2,2556.9,0.8568]
[1746930479645,0.21893348,2557.2,2556.8,8.0]
[1746930479646,0.21893348,2557.2,2557.0,0.3068]
[1746930479854,3.90990924,2557.7,2557.0,0.3068]
[1746930480176,3.90930414,2558.0,2557.0,0.3068]
[1746930480339,7.29216683,2558.3,2557.0,0.3068]
[1746930480544,3.90978025,2557.7,2557.0,0.3068]
[1746930480786,4.20216683,2557.7,2557.0,0.3068]
[1746930481083,3.91023507,2557.4,2557.0,0.1068]
[1746930481471,3.91023507,2557.4,2556.5,3.103]
[1746930481472,3.91068006,2557.1,2556.5,3.103]
[1746930481773,4.95976683,2557.4,2556.5,3.103]
[1746930481941,3.91095249,2557.0,2556.5,3.103]
[1746930482668,3.9110767,2556.9,2556.5,3.103]
[1746930482867,3.9110767,2556.9,2556.0,3.103]
[1746930483065,3.91125385,2556.8,2556.1,8.0]
[1746930483281,3.91106472,2556.9,2556.1,8.0]
[1746930483483,5.11347245,2556.9,2556.1,8.0]
[1746930484085,1.20240773,2556.9,2556.1,8.0]
[1746930484252,1.19598771,2557.3,2556.2,0.1068]
[1746930484449,3.91081471,2557.1,2556.2,0.1068]
[1746930484891,0.21890303,2557.2,2556.2,0.1068]
[1746930485072,0.21890303,2557.2,2556.3,0.1068]
[1746930485685,5.10645005,2557.3,2556.3,0.1068]
[1746930485988,1.00662169,2557.2,2556.3,0.1068]
[1746930486889,1.19598771,2557.3,2556.5,0.1068]
[1746930487093,3.91014,2557.5,2556.5,0.1068]
[1746930487593,3.893,2557.7,2556.6,0.03911154]
[1746930487888,11.087,2557.8,2556.8,0.1068]
[1746930488189,0.21886163,2557.7,2556.8,0.1068]
[1746930488488,2.13137599,2557.7,2556.9,0.1068]
[1746930488658,1.91251436,2557.7,2556.9,0.1068]
[1746930488859,3.90968392,2557.8,2557.0,0.1068]
[1746930489107,3.90951415,2557.9,2557.0,0.1068]
[1746930489469,3.90938125,2558.0,2557.0,0.1068]
[1746930489673,0.21873764,2557.9,2557.0,0.1068]
[1746930489980,5.35218879,2557.9,2557.0,0.1068]
[1746930490485,0.21873764,2557.8,2557.0,0.1068]
[1746930490984,3.90916969,2558.1,2557.1,0.03910266]
[1746930491157,3.90916969,2558.1,2557.2,0.1068]
[1746930491361,0.21875282,2558.0,2557.2,0.1068]
[1746930491564,1.32495046,2558.0,2557.2,0.1068]
[1746930491770,5.01550813,2558.0,2557.2,0.1068]
[1746930492280,1.10619764,2558.0,2557.2,0.1068]
[1746930492488,3.90918322,2558.1,2557.2,0.1068]
[1746930492685,4.20216683,2558.1,2557.2,0.1068]
[1746930492888,3.90976267,2557.7,2557.2,0.1068]
[1746930493094,4.20216683,2557.8,2557.2,0.1068]
[1746930493255,3.90997618,2557.6,2557.2,0.1068]
[1746930493454,0.41288306,2557.5,2557.2,0.1068]
[1746930494188,4.3230008,2557.5,2557.2,0.1068]
[1746930494497,3.91029455,2557.4,2556.9,0.1068]
[1746930495894,0.41288306,2557.5,2556.9,0.1068]
[1746930496192,3.90978579,2557.7,2556.9,0.1068]
[1746930496790,3.91051223,2557.3,2556.9,0.1068]
[1746930497096,3.9104496,2557.3,2556.9,0.1068]
[1746930497657,3.91044724,2557.3,2556.9,0.1068]
[1746930498068,0.7933,2557.6,2556.9,0.1068]
[1746930498272,3.91053923,2557.2,2556.9,0.1068]
[1746930498693,4.20216683,2557.1,2556.6,0.1068]
[1746930498897,3.91111701,2556.9,2556.6,0.1068]
[1746930499260,4.20216683,2557.4,2556.6,0.1068]
[1746930499575,3.91076506,2557.1,2556.6,0.1068]
[1746930500155,3.91085545,2557.0,2556.6,0.1068]
[1746930500420,3.91052713,2557.2,2556.6,0.1068]
[1746930500604,0.21881686,2557.1,2556.6,0.1068]
[1746930501508,3.91084302,2557.0,2556.6,0.1068]
[1746930501709,4.20216683,2556.8,2555.1,4.40595073]
[1746930502008,3.91232997,2556.1,2555.8,0.1068]
[1746930502370,3.91236306,2556.0,2555.0,8.0]
[1746930502567,3.91269505,2555.8,2555.1,0.1068]
[1746930502785,0.7646,2556.1,2555.1,0.1068]
[1746930502786,0.39126951,2555.7,2555.1,0.1068]
[1746930505213,0.39126951,2555.7,2555.1,8.1068]
[1746930505903,0.39126951,2555.7,2555.1,0.1068]
[1746930506205,0.39126951,2555.7,2555.1,8.1068]
[1746930506807,4.30412313,2555.7,2555.1,0.1068]
[1746930506975,4.73476976,2555.6,2555.1,0.1068]
[1746930507175,4.30415977,2555.7,2555.1,0.1068]
[1746930507900,0.39126951,2555.7,2555.1,0.1068]
[1746930508109,4.30421266,2555.7,2555.1,0.1068]
[1746930508319,3.91297542,2555.6,2555.1,0.1068]
[1746930508495,3.91335699,2555.4,2555.1,0.1068]
[1746930508695,3.91335699,2555.4,2554.7,8.1068]
[1746930509710,3.91399201,2555.0,2554.4,0.1586]
[1746930509915,3.91366669,2555.2,2554.4,0.1586]
[1746930510086,3.9139012,2555.0,2554.4,0.1586]
[1746930510477,3.91428178,2554.8,2554.4,0.1586]
[1746930511509,3.9141332,2554.9,2554.4,0.1586]
[1746930513602,3.9143781,2554.7,2554.4,0.1586]
[1746930514719,3.9142642,2554.8,2554.4,0.1586]
[1746930514917,4.69708005,2554.8,2554.4,0.1586]
[1746930515118,0.78281585,2554.8,2554.4,0.1586]
[1746930515498,0.78281585,2554.8,2554.0,8.0]
[1746930515699,4.69707054,2554.8,2554.0,8.0]
[1746930515912,0.78281585,2554.8,2554.0,8.0]
[1746930516216,3.9143628,2554.7,2554.0,8.0]
[1746930516418,4.77548785,2554.7,2554.0,8.0]
[1746930516644,3.91452042,2554.6,2554.0,8.0]
[1746930516924,3.91452729,2554.6,2554.0,8.0]
[1746930518225,3.91468255,2554.5,2554.0,8.0]
[1746930518387,3.91519801,2554.2,2553.9,0.1586]
[1746930518594,0.55583142,2554.6,2553.9,0.1586]
[1746930518924,3.91501234,2554.3,2553.9,0.1586]
[1746930519428,3.91468415,2554.5,2553.9,0.1586]
[1746930519429,3.91487824,2554.4,2553.9,0.1586]
[1746930519727,3.91521853,2554.2,2553.9,0.1586]
[1746930520188,3.91502073,2554.3,2553.9,0.1586]
[1746930520391,0.39150207,2554.2,2553.9,0.1586]
[1746930520727,3.91471522,2554.5,2553.9,0.1586]
[1746930521527,3.91483913,2554.4,2553.9,0.1586]
[1746930522333,3.9149856,2554.3,2553.9,0.1586]
[1746930522632,3.91488447,2554.4,2553.9,0.1586]
[1746930523340,3.91498172,2554.3,2553.9,0.1586]
[1746930523632,4.69795065,2554.3,2553.9,0.1586]
[1746930523836,0.78296893,2554.3,2553.9,0.1586]
[1746930525226,4.6979375,2554.3,2553.9,0.1586]
[1746930525401,0.78296893,2554.3,2553.9,0.1586]
[1746930525701,8.13229188,2554.7,2553.9,0.1586]
[1746930525702,3.91450716,2554.6,2553.9,0.1586]
[1746930526047,3.91482057,2554.4,2553.9,0.1586]
[1746930526839,8.13229188,2554.7,2553.9,0.1586]
[1746930527335,3.91491578,2554.4,2553.9,0.1586]
[1746930527835,3.91457843,2554.6,2553.9,0.1586]
[1746930528036,5.20390624,2554.5,2553.9,0.1586]
[1746930528333,0.86112505,2554.7,2553.9,0.1586]
[1746930528636,3.91466735,2554.5,2553.9,0.1586]
[1746930528823,3.91463919,2554.6,2553.9,0.1586]
[1746930529024,3.91469466,2554.5,2553.9,0.1586]
[1746930529435,4.77553245,2554.7,2553.9,0.1586]
[1746930529436,4.77555868,2554.7,2553.9,0.1586]
[1746930529627,3.066,2554.9,2553.9,0.1586]
[1746930530022,6.98018774,2554.9,2553.9,0.1586]
[1746930530339,3.91422905,2554.8,2553.9,0.1586]
[1746930531646,3.91440677,2554.7,2553.9,0.1586]
[1746930532436,3.91453931,2554.6,2553.9,0.1586]
[1746930532736,1.58759461,2554.6,2553.9,0.1586]
[1746930532937,4.20216683,2554.4,2553.4,3.2346]
[1746930533236,3.91542925,2554.0,2553.4,3.2346]
[1746930533443,3.91542925,2554.0,2553.5,8.0]
[1746930533855,3.91502347,2554.3,2553.5,8.0]
[1746930534007,3.91534285,2554.1,2553.5,8.0]
[1746930535146,3.91546188,2554.0,2553.5,8.0]
[1746930536116,3.91561489,2553.9,2553.4,3.2346]
[1746930537014,3.91551915,2554.0,2553.4,3.2346]
[1746930537215,0.503344,2554.0,2553.4,3.2346]
[1746930538269,4.41880197,2554.0,2553.4,3.2346]
[1746930539028,3.91563533,2553.9,2553.4,3.2346]
[1746930539242,3.91573842,2553.8,2553.4,3.2346]
[1746930539550,0.83345404,2553.8,2553.4,3.2346]
[1746930540420,4.74919167,2553.8,2553.4,3.2346]
[1746930540621,0.83345404,2553.8,2553.4,3.2346]
[1746930540847,3.91559033,2553.9,2553.4,3.2346]
[1746930541445,0.21949454,2553.8,2553.4,3.2346]
[1746930541627,4.13534915,2553.8,2553.4,3.2346]
[1746930541821,4.13534915,2553.8,2553.4,0.1586]
[1746930541822,0.21949454,2553.8,2553.4,0.1586]
[1746930542023,3.91612699,2553.6,2553.1,0.1586]
[1746930542242,1.08909079,2553.6,2553.1,0.1586]
[1746930542433,3.91635895,2553.4,2552.7,0.1586]
[1746930542633,3.91637394,2553.4,2552.7,8.1586]
[1746930542836,5.77887292,2553.6,2552.7,0.1586]
[1746930543056,3.91664803,2553.3,2552.7,0.1586]
[1746930543351,0.78330274,2553.2,2552.7,0.1586]
[1746930543555,1.86279079,2553.6,2552.7,0.1586]
[1746930543556,3.91690054,2553.1,2552.7,0.1586]
[1746930544230,6.97471106,2553.2,2552.7,0.1586]
[1746930544421,6.97476109,2553.2,2552.7,0.1586]
[1746930545161,9.08909079,2553.6,2552.7,0.1586]
[1746930545322,1.30051287,2553.5,2552.7,0.1586]
[1746930545735,8.0,2553.7,2552.7,0.1586]
[1746930545935,4.20216683,2554.0,2552.7,0.1586]
[1746930546135,1.11811903,2554.2,2552.7,0.1586]
[1746930546136,0.21912651,2553.6,2552.7,0.1586]
[1746930546972,8.0,2553.8,2552.7,0.1586]
[1746930547174,9.4972693,2553.8,2552.8,0.1586]
[1746930547983,1.4972693,2553.8,2552.8,0.1586]
[1746930548143,3.057,2553.9,2552.8,0.1586]
[1746930548773,4.1349468,2553.8,2552.8,0.1586]
[1746930549382,0.21913585,2553.8,2552.8,0.1586]
[1746930549542,0.21913585,2553.7,2552.8,0.1586]
[1746930550570,12.13473186,2553.9,2552.8,0.1586]
[1746930550776,5.54951383,2553.8,2552.8,0.1586]
[1746930551272,8.07006683,2553.7,2552.8,0.1586]
[1746930551469,4.13529209,2553.6,2552.8,0.1586]
[1746930551782,3.91639054,2553.4,2552.8,0.1586]
[1746930552775,3.91690608,2553.1,2552.4,0.1586]
[1746930552938,0.39169061,2553.0,2552.4,0.1586]
[1746930553273,4.73057637,2553.2,2552.4,0.1586]
[1746930553642,0.8139,2553.2,2552.4,0.1586]
[1746930554144,1.63368987,2553.8,2552.6,0.1586]
[1746930554441,8.0,2553.8,2552.6,0.1586]
[1746930554772,4.20216683,2553.7,2552.6,0.1586]
[1746930554965,4.20216683,2553.7,2552.7,0.1586]
[1746930554966,0.21900726,2553.6,2552.7,0.1586]
[1746930555159,0.21900726,2553.6,2552.7,0.19776964]
[1746930555471,0.21900726,2553.5,2552.7,0.5234466]
[1746930555677,0.21900726,2553.5,2552.8,0.1586]
[1746930556348,8.8139,2553.9,2552.8,0.1586]
[1746930556349,4.20216683,2553.7,2552.8,0.1586]
[1746930556773,3.91665516,2553.2,2552.8,0.1586]
[1746930557269,3.91656436,2553.3,2552.8,0.1586]
[1746930557570,0.78329447,2553.2,2552.8,0.1586]
[1746930559846,3.051,2553.4,2552.8,0.1586]
[1746930560049,1.11811903,2554.2,2552.8,0.1586]
[1746930560050,0.7572,2553.8,2552.8,0.1586]
[1746930560247,3.91618113,2553.6,2552.8,0.1586]
[1746930560446,3.91591468,2553.7,2552.8,0.1586]
[1746930560675,5.18347134,2553.6,2552.8,0.1586]
[1746930560852,1.26731147,2553.6,2552.8,0.1586]
[1746930561684,0.7572,2553.8,2552.8,0.1586]
[1746930561879,4.20216683,2553.9,2552.8,0.1586]
[1746930562069,3.9158262,2553.8,2552.8,0.1586]
[1746930562450,4.20216683,2553.9,2552.8,0.1586]
[1746930562451,0.21935997,2553.7,2552.8,3.2176]
[1746930562653,0.21935997,2553.7,2552.8,3.25677144]
[1746930562896,1.05309246,2553.7,2552.8,4.34327714]
[1746930563186,0.21935997,2553.6,2552.8,4.34327714]
[1746930563415,0.21935997,2553.6,2552.9,0.1586]
[1746930563711,0.21935997,2553.6,2552.9,0.19776818]
[1746930563850,0.21935997,2553.6,2553.0,0.1586]
[1746930564046,0.21935997,2553.6,2553.2,0.1586]
[1746930564255,0.21935997,2554.1,2553.2,0.1586]
[1746930564460,3.91543076,2554.0,2553.2,0.1586]
[1746930564647,0.21935997,2554.1,2553.2,0.1586]
[1746930564871,4.1346985,2554.1,2553.2,0.1586]
[1746930565091,0.41346985,2554.0,2553.2,0.1586]
[1746930566396,4.20331442,2554.3,2553.2,0.1586]
[1746930566552,0.7773,2554.6,2553.2,12.20216683]
[1746930566746,3.91512421,2554.2,2553.3,0.1586]
[1746930567081,3.91543101,2554.0,2553.3,0.1586]
[1746930567275,4.3071516,2553.9,2553.3,0.1586]
[1746930567658,3.9158892,2553.7,2553.3,0.1586]
[1746930567976,3.91573341,2553.8,2553.3,0.1586]
[1746930568177,4.30718133,2553.9,2553.3,0.1586]
[1746930568366,3.91573341,2553.8,2553.3,0.1586]
[1746930568568,0.82229147,2553.7,2553.3,0.1586]
[1746930569757,0.3915431,2553.9,2553.3,0.1586]
[1746930569962,3.91530335,2554.1,2553.3,0.1586]
[1746930570288,4.97137774,2554.3,2553.3,0.19776364]
[1746930570594,0.2194143,2554.1,2553.3,0.1586]
[1746930571572,0.2194143,2554.1,2553.4,0.1586]
[1746930571859,11.91471422,2554.5,2553.5,0.1586]
[1746930572058,3.91471422,2554.5,2553.5,0.1586]
[1746930572291,3.91471422,2554.5,2553.7,0.1586]
[1746930572790,0.21932093,2554.4,2553.7,0.1586]
[1746930573488,3.91468419,2554.5,2553.7,0.1586]
[1746930573685,0.39146842,2554.4,2553.7,0.1586]
[1746930574064,3.059,2554.7,2553.7,0.1586]
[1746930574282,3.91423121,2554.8,2553.8,0.03915148]
[1746930574463,3.91423121,2554.8,2553.7,0.1586]
[1746930574464,3.91423121,2554.8,2554.0,0.1586]
[1746930574683,0.21916077,2554.7,2554.0,0.1586]
[1746930575513,3.9142278,2554.8,2554.0,0.1586]
[1746930575797,0.39142278,2554.8,2554.0,0.1586]
[1746930575995,3.91399515,2555.0,2554.1,0.19774814]
[1746930576301,6.9527953,2555.1,2554.1,0.1586]
[1746930576463,3.9137953,2555.1,2554.1,0.19774814]
[1746930576663,0.21895546,2555.0,2554.1,0.19774814]
[1746930577673,0.21895546,2555.0,2554.4,0.1586]
[1746930577876,0.21895546,2555.0,2554.5,3.04]
[1746930578110,3.90312464,2555.3,2554.6,0.1586]
[1746930579503,3.91328195,2555.4,2554.6,0.1586]
[1746930580013,3.91343482,2555.3,2554.6,0.1586]
[1746930581091,3.91334358,2555.4,2554.6,0.1586]
[1746930581301,3.91334358,2555.4,2554.6,0.59433013]
[1746930582315,3.91320399,2555.5,2554.6,0.59433013]
[1746930582471,3.91320399,2555.5,2554.7,0.1586]
[1746930583518,3.91332179,2555.4,2554.7,3.1976]
[1746930584794,3.9132081,2555.5,2554.7,3.1976]
[1746930584991,5.94576167,2555.5,2554.7,3.1976]
[1746930585409,0.29713106,2555.6,2554.7,3.1976]
[1746930585608,3.91246382,2556.0,2554.9,0.1586]
[1746930585910,3.91246382,2556.0,2555.1,0.1586]
[1746930585911,3.91267606,2555.8,2555.1,0.1586]
[1746930586504,4.20273455,2555.9,2555.1,0.1586]
[1746930586843,0.55,2556.5,2555.1,0.1586]
[1746930586844,0.7733,2556.9,2555.4,0.1586]
[1746930586996,0.7733,2556.9,2555.3,8.55]
[1746930586997,3.91144691,2556.6,2555.7,0.1586]
[1746930587197,3.91144691,2556.6,2555.8,0.03912179]
[1746930587431,0.55,2556.8,2555.9,0.1586]
[1746930587610,3.91184122,2556.4,2555.9,0.1586]
[1746930588114,0.39118412,2556.4,2555.9,0.1586]
[1746930588315,5.01436683,2556.3,2555.1,8.1586]
[1746930588514,3.91251259,2556.0,2555.1,8.1586]
[1746930588830,3.91237484,2556.0,2555.2,0.1586]
[1746930589005,3.91253413,2555.9,2555.2,0.1586]
[1746930589227,3.91268365,2555.8,2555.2,0.1586]
[1746930589411,3.91295803,2555.7,2555.2,0.1586]
[1746930589612,3.9127267,2555.8,2555.2,0.1586]
[1746930589808,3.91255002,2555.9,2555.2,0.1586]
[1746930589809,3.91257071,2555.9,2555.2,0.1586]
[1746930590132,0.88971902,2555.8,2555.2,0.1586]
[1746930590321,4.80243138,2555.8,2555.2,0.1586]
[1746930590725,3.91283797,2555.7,2555.2,0.1586]
[1746930590898,3.91294495,2555.7,2555.2,0.1586]
[1746930591512,1.66361902,2555.8,2555.2,0.1586]
[1746930591715,0.86032365,2555.7,2555.2,0.1586]
[1746930592216,0.88971902,2555.8,2555.2,0.1586]
[1746930592738,4.80239787,2555.8,2555.2,0.1586]
[1746930593032,0.88971902,2555.8,2555.2,0.1586]
[1746930593230,4.802398,2555.8,2555.2,0.1586]
[1746930593434,4.80244218,2555.8,2555.2,0.1586]
[1746930593601,3.913062,2555.6,2555.2,0.1586]
[1746930594034,3.91330293,2555.4,2554.8,0.1586]
[1746930594258,3.91342052,2555.4,2554.8,0.1586]
[1746930594413,3.9134017,2555.4,2554.8,0.1586]
[1746930595557,3.91346261,2555.3,2554.8,0.1586]
[1746930595749,4.48939454,2555.3,2554.8,0.1586]
[1746930596341,3.91360013,2555.2,2554.8,0.1586]
[1746930596640,3.91301982,2555.6,2554.8,0.1586]
[1746930597353,3.91312854,2555.5,2554.8,0.1586]
[1746930597558,3.91322863,2555.5,2554.8,0.1586]
[1746930597759,0.78262305,2555.4,2554.8,0.1586]
[1746930597948,3.91300187,2555.6,2554.8,0.1586]
[1746930598150,3.91314235,2555.5,2554.8,0.1586]
[1746930598358,3.91297542,2555.6,2554.8,0.1586]
[1746930598959,3.91343482,2555.3,2554.8,0.1586]
[1746930599165,3.91389929,2555.0,2554.8,0.1586]
[1746930599364,3.91409791,2554.9,2554.6,0.1586]
[1746930599548,8.0,2554.8,2554.6,0.1586]
[1746930599729,8.0,2555.1,2554.6,0.1586]
[1746930600369,8.0,2555.2,2554.6,0.1586]
[1746930601043,3.91435393,2554.7,2554.6,0.1586]
[1746930601259,3.91435393,2554.7,2553.9,0.1586]
[1746930601471,8.0,2554.6,2553.9,0.1586]
[1746930601687,8.0,2554.0,2553.2,0.1586]
[1746930601903,8.0,2553.8,2553.2,0.1586]
[1746930602054,3.91559846,2553.9,2553.2,0.1586]
[1746930602055,11.91548516,2554.0,2553.2,1.58286]
[1746930602858,8.0,2553.8,2553.2,1.42426]
[1746930603063,3.91499071,2554.3,2553.3,0.1586]
[1746930603266,8.0,2554.1,2553.3,0.1586]
[1746930603753,3.91529241,2554.1,2553.3,0.1586]
[1746930604100,1.58302857,2554.1,2553.3,0.1586]
[1746930604450,3.91433219,2554.8,2553.5,0.1586]
[1746930604654,8.0,2554.7,2553.7,0.1586]
[1746930605055,3.91465768,2554.6,2553.7,0.1586]
[1746930605626,3.019,2554.8,2553.9,0.1586]
[1746930605887,8.0,2554.7,2554.1,0.1586]
[1746930606094,1.06516331,2554.6,2554.1,0.1586]
[1746930606480,8.0,2554.7,2554.1,0.1586]
[1746930606679,0.29962542,2555.4,2554.3,0.1586]
[1746930606892,8.0,2554.8,2554.3,0.1586]
[1746930607067,3.91481365,2554.4,2553.7,0.1586]
[1746930608061,3.9148652,2554.4,2553.7,0.1586]
[1746930608258,1.19148652,2554.4,2553.7,0.1586]
[1746930608482,8.0,2554.7,2553.7,0.1586]
[1746930608681,11.91421888,2554.8,2553.7,0.1586]
[1746930608888,8.0,2554.8,2553.8,0.19775182]
[1746930609412,3.91463698,2554.6,2553.8,0.1586]
[1746930609600,3.91442102,2554.7,2553.8,1.27636]
[1746930609772,3.91451948,2554.6,2553.8,1.27636]
[1746930610283,3.91440789,2554.7,2553.8,1.27636]
[1746930610479,3.9146604,2554.5,2553.8,1.27636]
[1746930610688,3.9146604,2554.5,2553.8,0.1586]
[1746930610996,3.91452907,2554.6,2553.8,0.1586]
[1746930611502,3.91463085,2554.6,2553.8,0.1586]
[1746930612384,3.91464464,2554.6,2553.8,0.1586]
[1746930612593,4.30620352,2554.5,2553.8,0.1586]
[1746930612895,0.39146446,2554.5,2553.8,0.1586]
[1746930613700,11.014,2554.9,2554.0,0.1586]
[1746930614207,3.9142071,2554.8,2554.0,0.1586]
[1746930614595,3.91446261,2554.7,2554.0,0.1586]
[1746930615100,11.014,2554.9,2554.0,0.1586]
[1746930615265,14.92805288,2554.9,2554.0,0.1586]
[1746930615470,3.91478288,2554.5,2554.0,0.1586]
[1746930615776,4.20216683,2554.2,2553.3,0.1586]
[1746930615978,0.8245,2553.3,2552.7,0.1586]
[1746930616291,0.8245,2553.3,2552.4,3.02]
[1746930616292,8.11884851,2553.2,2552.4,3.1786]
[1746930616491,3.91712496,2552.9,2552.4,3.1786]
[1746930616977,3.91720389,2552.9,2552.4,3.1786]
[1746930617313,0.30026178,2553.0,2552.4,3.1786]
[1746930617497,0.89433485,2553.1,2552.4,3.1786]
[1746930617696,3.91726405,2552.9,2552.4,0.1586]
[1746930618000,4.79007031,2552.9,2552.4,0.1586]
[1746930618366,0.87285593,2552.9,2552.4,0.1586]
[1746930618574,4.74107808,2553.3,2552.4,0.1586]
[1746930618813,0.8245,2553.3,2552.4,0.1586]
[1746930618971,3.012,2553.4,2552.4,0.1586]
[1746930619172,3.91660284,2553.3,2552.4,0.1586]
[1746930619380,3.91665361,2553.2,2552.4,0.1586]
[1746930619581,5.00117926,2553.2,2552.4,0.1586]
[1746930619780,5.29038294,2553.2,2552.4,0.1586]
[1746930619975,1.37372933,2553.2,2552.4,0.1586]
[1746930620181,0.28920368,2553.2,2552.4,0.1586]
[1746930620403,6.92842326,2553.4,2552.4,0.1586]
[1746930620611,3.91650021,2553.3,2552.4,0.1586]
[1746930620812,3.91665361,2553.2,2552.4,0.1586]
[1746930621314,3.01,2553.4,2552.4,0.1586]
[1746930621502,4.58323819,2553.4,2552.4,0.1586]
[1746930621886,3.91650021,2553.3,2552.4,0.1586]
[1746930622114,0.2925812,2553.3,2552.4,0.1586]
[1746930622316,8.49963515,2553.4,2552.4,0.1586]
[1746930622500,3.91652692,2553.3,2552.4,0.1586]
[1746930622809,9.24159814,2553.3,2552.4,0.1586]
[1746930622996,3.9172335,2552.9,2552.4,0.1586]
[1746930623987,0.773,2553.1,2552.4,0.1586]
[1746930624178,4.68988372,2553.1,2552.4,0.1586]
[1746930624380,3.91704056,2553.0,2552.4,0.1586]
[1746930624592,0.86069243,2552.9,2552.4,0.1586]
[1746930625803,1.15277434,2552.9,2552.4,0.1586]
[1746930626608,0.29208191,2552.9,2552.4,0.1586]
[1746930626807,4.68988068,2553.1,2552.4,0.1586]
[1746930627520,3.9169781,2553.0,2552.4,0.1586]
[1746930628380,4.68988872,2553.1,2552.4,0.1586]
[1746930628706,3.9170003,2553.0,2552.4,0.1586]
[1746930628907,0.8606889,2552.9,2552.4,0.1586]
[1746930629298,4.77780351,2552.9,2552.4,0.1586]
[1746930629698,5.06646954,2552.9,2552.4,0.1586]
[1746930629894,1.14935493,2552.9,2552.4,0.1586]
[1746930630100,5.06652032,2552.9,2552.4,0.1586]
[1746930630300,0.89835633,2552.8,2552.4,0.1586]
[1746930630625,4.81563382,2552.8,2552.4,0.1586]
[1746930630826,0.89835633,2552.8,2552.4,0.1586]
[1746930631635,0.28866603,2552.9,2552.4,0.1586]
[1746930631986,3.91719972,2552.9,2552.4,0.1586]
[1746930632830,4.21467867,2552.9,2552.4,0.1586]
[1746930633040,0.55,2552.8,2552.1,0.1586]
[1746930633255,3.91781807,2552.5,2552.1,0.1586]
[1746930633432,4.46765748,2552.6,2552.1,0.1586]
[1746930633738,5.36117612,2552.6,2552.1,0.1586]
[1746930634097,3.91778313,2552.5,2552.1,0.1586]
[1746930634300,3.91826965,2552.2,2551.9,0.7254]
[1746930634521,0.55,2552.2,2551.9,0.7254]
[1746930634804,4.46826818,2552.2,2551.9,0.7254]
[1746930635441,4.46810572,2552.3,2551.9,0.7254]
[1746930635731,0.55,2552.3,2551.9,0.7254]
[1746930635930,0.55,2552.4,2551.9,0.7254]
[1746930636235,1.37350293,2552.4,2551.9,0.7254]
[1746930636735,0.55,2552.5,2551.9,0.7254]
[1746930637038,3.002,2552.7,2552.0,0.1586]
[1746930637335,3.002,2552.7,2552.0,0.19778294]
[1746930638241,3.002,2552.7,2552.0,0.1586]
[1746930638406,3.002,2552.7,2552.0,0.19778094]
[1746930639625,3.002,2552.7,2552.0,0.59039903]
[1746930639826,0.29747895,2552.9,2552.1,0.1586]
[1746930640026,3.9172168,2552.9,2552.1,0.1586]
[1746930640199,4.46702015,2553.0,2552.1,0.1586]
[1746930640407,0.74670202,2552.9,2552.1,0.1586]
[1746930640747,3.91720104,2552.9,2552.1,0.1586]
[1746930641405,0.55,2553.0,2552.1,0.19777891]
[1746930642235,0.55,2553.0,2552.1,0.1586]
[1746930642709,0.55,2553.0,2552.1,0.1977789]
[1746930642910,0.84107422,2553.0,2552.1,0.1977789]
[1746930643106,0.84107422,2553.0,2552.2,0.1586]
[1746930643651,0.29107422,2553.0,2552.2,0.1586]
[1746930643856,2.997,2553.4,2552.4,0.1586]
[1746930644059,2.997,2553.4,2552.6,0.1586]
[1746930644352,3.91627541,2553.5,2552.6,0.1586]
[1746930644711,4.21163748,2553.5,2552.6,0.1586]
[1746930644909,0.21915418,2553.4,2552.7,0.19777196]
[1746930645145,0.21915418,2553.4,2552.7,0.1586]
[1746930645440,0.21915418,2553.4,2553.3,8.1586]
[1746930645608,0.21915418,2553.4,2553.3,12.39868026]
[1746930646442,4.68235104,2554.9,2553.4,0.1586]
[1746930646641,3.91420072,2554.8,2553.6,0.1586]
[1746930647005,0.21889662,2554.7,2553.8,0.1586]
[1746930647235,0.21889662,2554.7,2554.0,0.1586]
[1746930648015,0.21889662,2554.7,2554.1,0.19775016]
[1746930648220,3.91321732,2555.5,2554.3,0.1586]
[1746930648530,4.71277547,2555.6,2554.5,0.1586]
[1746930648701,4.71277547,2555.6,2554.7,0.1586]
[1746930648702,3.91300287,2555.6,2554.7,0.1586]
[1746930648907,3.002,2555.8,2554.8,0.03913898]
[1746930649109,0.38018,2555.7,2554.8,0.03913898]
[1746930649538,4.29302966,2555.7,2554.8,0.03913898]
[1746930649931,0.38018,2555.7,2554.7,0.1586]
[1746930650133,0.55,2555.6,2554.7,0.19773712]
[1746930650523,0.29147077,2555.7,2554.7,0.19773712]
[1746930650725,3.91275235,2555.8,2554.7,0.19773712]
[1746930651239,0.7998,2556.5,2554.9,8.1586]
[1746930651427,3.91169186,2556.5,2555.1,0.1586]
[1746930651631,3.91169186,2556.5,2555.4,0.1586]
[1746930651937,0.55,2556.5,2555.6,0.1586]
[1746930652142,3.91135624,2556.7,2555.6,0.1586]
[1746930652314,1.49553227,2556.7,2555.7,0.03912642]
[1746930652514,3.91123393,2556.8,2555.9,0.1586]
[1746930652720,2.99,2557.0,2555.9,8.19772117]
[1746930652931,2.99,2557.0,2556.0,0.1586]
[1746930653170,0.8149,2557.2,2556.1,0.03911766]
[1746930653325,3.8049,2557.2,2556.0,0.1586]
[1746930653526,3.91094184,2557.0,2556.0,1.27466]
[1746930653859,3.91094184,2557.0,2556.1,0.1586]
[1746930654032,0.38049,2557.1,2556.1,0.1586]
[1746930654233,4.57893343,2557.1,2556.1,0.1586]
[1746930654444,3.910833,2557.0,2556.1,0.1586]
[1746930654625,0.66823508,2557.1,2556.2,0.0391155]
[1746930654827,3.9105542,2557.2,2556.3,0.1586]
[1746930655038,3.9105542,2557.2,2556.4,0.03911367]
[1746930655443,3.90996507,2557.6,2556.6,8.1586]
[1746930655630,0.39099651,2557.6,2556.7,1.27456]
[1746930655834,4.20100849,2557.7,2556.9,0.1586]
[1746930656035,3.90986058,2557.7,2556.9,0.1586]
[1746930656519,6.89747316,2557.9,2556.9,0.1586]